Workbook

Sheet 113年
A1: 113年原住民族廠商得標案件統計表
G2: 表21
A3: 採購性質 | B3: 原住民族廠商 得標件數 | C3: 原住民族廠商且負責人為女性之得標件數 | D3: 原住民族廠商且負責人為女性之得標件數比率 | E3: 原住民族廠商 得標金額 (億元) | F3: 原住民族廠商且負責人為女性之得標金額 (億元) | G3: 原住民族廠商且負責人為女性之得標金額比率
A4: 工程類 | B4: =888-1 -> 887 | C4: 346 | D4: =C4/B4 -> 39.01% | E4: =14.70575428-0.001877 -> 14.70 | F4: 6.02 | G4: =F4/E4 -> 40.96%
A5: 財物類 | B5: =510-2 -> 508 | C5: 221 | D5: =C5/B5 -> 43.50% | E5: =2.97617834-0.00396-0.00245501 -> 2.97 | F5: 1.40 | G5: =F5/E5 -> 47.27%
A6: 勞務類 | B6: 1,136 | C6: 491 | D6: =C6/B6 -> 43.22% | E6: 17.09 | F6: 6.66 | G6: =F6/E6 -> 38.95%
A7: 合計 | B7: =SUM(B4:B6) -> 2,531 | C7: =SUM(C4:C6) -> 1,058 | D7: =C7/B7 -> 41.80% | E7: =SUM(E4:E6) -> 34.76 | F7: =SUM(F4:F6) -> 14.08 | G7: =F7/E7 -> 40.51%
A8: 資料來源：企劃處
A9: 備註： 1.性別資料使用： (1)原住民族廠商得標案件相關統計資料，係由行政院原住民族委員會全球資訊網公告核發「原住民機構、法人或團體證明書」清冊彙整成原住民族廠商清單，再與政府電子採購網決標公告得標廠商名稱比對相同者而得，另共同供應契約不納入統計。 (2)採購案如為複數決標，若有多個原住民廠商得標，依得標廠商家數為準統計。 2.應用深化：原住民廠商總得標件數計2,531件，其中負責人為女性之原住民廠商得標件數計1058件(占原住民廠商總得標件數41.80%)；原住民廠商總得標金額34.76億元，其中負責人為女性之廠商得標金額14.08億元(約占原住民廠商總得標金額40.51%)。整體原住民廠商承包件數，113年較112年之2,413件，增加118件；其中，女性原住民廠商得標件數，113年較112年之955件，增加103件，承包件數比率增加10.78%；整體原住民廠商承包金額，113年較112年之29.83億元，增加4.93億元，其中女性原住民廠商得標金額增加2.75億元，得標金額比率增加24.28%，女性原住民廠商承攬件數及金額均增加。 3.未進行國際性別統計比較原因說明：無該等國際性資料，無從比較。

Sheet 113年附表(縣市別)
A1: 113年1月1日至12月31日原住民族廠商得標案件統計表(縣市別)
G2: 表21之附表
A3: 核發單位地區 | B3: 原住民族廠商 得標件數 | C3: 原住民族廠商且負責人為女性之得標件數 | D3: 原住民族廠商且負責人為女性之得標件數比率 | E3: 原住民族廠商 得標金額 (億元) | F3: 原住民族廠商且負責人為女性之得標金額 (億元) | G3: 原住民族廠商且負責人為女性之得標金額比率
A4: 臺北市 | B4: 70 | C4: 24 | D4: =C4/B4 -> 34.29% | E4: 0.58 | F4: 0.26 | G4: =F4/E4 -> 45.34%
A5: 臺中市 | B5: 172 | C5: 76 | D5: =C5/B5 -> 44.19% | E5: 2.43 | F5: 1.16 | G5: =F5/E5 -> 47.85%
A6: 臺南市 | B6: 4 | C6: 1 | D6: 25.00% | E6: 0.15 | F6: 0.10 | G6: 65.74%
A7: 高雄市 | B7: 77 | C7: 30 | D7: 38.96% | E7: 0.82 | F7: 0.40 | G7: 48.56%
A8: 新北市 | B8: 231 | C8: 113 | D8: 48.92% | E8: 4.93 | F8: 1.60 | G8: 32.40%
A9: 宜蘭縣 | B9: 31 | C9: 10 | D9: 32.26% | E9: 0.36 | F9: 0.05 | G9: 13.37%
A10: 桃園市 | B10: 421 | C10: 196 | D10: 46.56% | E10: 5.93 | F10: 3.13 | G10: 52.75%
A11: 嘉義市 | B11: 3 | C11: 0 | D11: 0.00% | E11: 0.03 | F11: 0.00 | G11: 0.00%
A12: 新竹縣 | B12: 33 | C12: 22 | D12: 66.67% | E12: 0.51 | F12: 0.40 | G12: 78.80%
A13: 苗栗縣 | B13: 68 | C13: 37 | D13: 54.41% | E13: 0.62 | F13: 0.31 | G13: 49.82%
A14: 南投縣 | B14: 237 | C14: 82 | D14: 34.60% | E14: 3.25 | F14: 1.29 | G14: 39.60%
A15: 彰化縣 | B15: 35 | C15: 11 | D15: 31.43% | E15: 0.35 | F15: 0.10 | G15: 27.44%
A16: 新竹市 | B16: 3 | C16: 0 | D16: 0.00% | E16: 0.04 | F16: 0.00 | G16: 0.00%
A17: 雲林縣 | B17: 3 | C17: 0 | D17: 0.00% | E17: 0.11 | F17: 0.00 | G17: 0.00%
A18: 嘉義縣 | B18: 5 | C18: 4 | D18: 80.00% | E18: 0.22 | F18: 0.21 | G18: 97.19%
A19: 屏東縣 | B19: 188 | C19: 67 | D19: 35.64% | E19: 2.97 | F19: 0.82 | G19: 27.67%
A20: 花蓮縣 | B20: 459 | C20: 204 | D20: 44.44% | E20: 5.40 | F20: 2.42 | G20: 44.88%
A21: 臺東縣 | B21: 491 | C21: 181 | D21: 36.86% | E21: 6.06 | F21: 1.83 | G21: 30.27%
A22: 合計 | B22: =SUM(B4:B21) -> 2,531 | C22: =SUM(C4:C21) -> 1,058 | D22: =C22/B22 -> 41.80% | E22: =SUM(E4:E21) -> 34.76 | F22: =SUM(F4:F21) -> 14.08 | G22: 40.51%
A23: 備註： 1.原住民族企業得標案件相關統計資料，係由行政院原住民族委員會全球資訊網公告核發「原住民機構、法人或團體證明書」清冊彙整成原住民族企業清單，再與政府電子採購網決標公告得標廠商名稱比對相同者而得。 2.共同供應契約不納入統計。 3.自113年度起新增不利處境者「縣市」性別統計指標。

Sheet 112年
A1: 112年原住民族廠商得標案件統計表
G2: 表21
A3: 採購性質 | B3: 原住民族廠商 得標件數 | C3: 原住民族廠商且負責人為女性之得標件數 | D3: 原住民族廠商且負責人為女性之得標件數比率 | E3: 原住民族廠商 得標金額 (億元) | F3: 原住民族廠商且負責人為女性之得標金額 (億元) | G3: 原住民族廠商且負責人為女性之得標金額比率
A4: 工程類 | B4: 894 | C4: 299 | D4: =C4/B4 -> 33.45% | E4: 11.09 | F4: 3.83 | G4: =F4/E4 -> 34.57%
A5: 財物類 | B5: 531 | C5: 247 | D5: =C5/B5 -> 46.52% | E5: 4.42 | F5: 2.94 | G5: =F5/E5 -> 66.58%
A6: 勞務類 | B6: 988 | C6: 409 | D6: =C6/B6 -> 41.40% | E6: 14.32 | F6: 4.55 | G6: =F6/E6 -> 31.81%
A7: 合計 | B7: =SUM(B4:B6) -> 2,413 | C7: =SUM(C4:C6) -> 955 | D7: =C7/B7 -> 39.58% | E7: =SUM(E4:E6) -> 29.83 | F7: =SUM(F4:F6) -> 11.33 | G7: =F7/E7 -> 37.99%
A8: 資料來源：企劃處
A9: 備註： 1.性別資料使用：原住民族廠商得標案件相關統計資料，係由行政院原住民族委員會全球資訊網公告核發「原住民機構、法人或團體證明書」清冊彙整成原住民族廠商清單，再與政府電子採購網決標公告得標廠商名稱比對相同者而得，另共同供應契約不納入統計。 2.應用深化：原住民廠商總得標件數計2,413件，其中負責人為女性之原住民廠商得標件數計955件(占原住民廠商總得標件數39.58%)；原住民廠商總得標金額29.83億元，其中負責人為女性之廠商得標金額11.33億元(約占原住民廠商總得標金額37.99%)。整體原住民廠商承包件數，112年較111年之1,913件，增加500件；其中，女性原住民廠商得標件數，112年較111年之741件，增加214件，承包件數比率增加28.88%；整體原住民廠商承包金額，112年較111年之27.99億元，增加1.84億元，其中女性原住民廠商得標金額增加0.06億元，得標金額比率增加0.53%，女性原住民廠商承攬件數增加，但承攬金額成長幅度較小，顯示原住民女性負責人多承攬規模較小案件。 3.未進行國際性別統計比較原因說明：無該等國際性資料，無從比較。

Sheet 111年
A1: 111年原住民族廠商得標案件統計表
G2: 表21
A3: 採購性質 | B3: 原住民族廠商 得標件數 | C3: 原住民族廠商且負責人為女性之得標件數 | D3: 原住民族廠商且負責人為女性之得標件數比率 | E3: 原住民族廠商 得標金額 (億元) | F3: 原住民族廠商且負責人為女性之得標金額 (億元) | G3: 原住民族廠商且負責人為女性之得標金額比率
A4: 工程類 | B4: 656 | C4: 237 | D4: =C4/B4 -> 36.13% | E4: 8.64 | F4: 2.78 | G4: =F4/E4 -> 32.14%
A5: 財物類 | B5: 560 | C5: 281 | D5: =C5/B5 -> 50.18% | E5: 6.67 | F5: 5.43 | G5: =F5/E5 -> 81.33%
A6: 勞務類 | B6: 697 | C6: 223 | D6: =C6/B6 -> 31.99% | E6: 12.68 | F6: 3.07 | G6: =F6/E6 -> 24.19%
A7: 合計 | B7: =SUM(B4:B6) -> 1,913 | C7: =SUM(C4:C6) -> 741 | D7: =C7/B7 -> 38.73% | E7: =SUM(E4:E6) -> 27.99 | F7: =SUM(F4:F6) -> 11.27 | G7: =F7/E7 -> 40.26%
A8: 資料來源：企劃處
A9: 備註： 1.性別資料使用：原住民族廠商得標案件相關統計資料，係由行政院原住民族委員會全球資訊網公告核發「原住民機構、法人或團體證明書」清冊彙整成原住民族廠商清單，再與政府電子採購網決標公告得標廠商名稱比對相同者而得，另共同供應契約不納入統計。 2.應用深化：原住民廠商總得標件數計1,913件，其中負責人為女性之原住民廠商得標件數計741件(占原住民廠商總得標件數38.73%)；原住民廠商總得標金額27.99億元，其中負責人為女性之廠商得標金額11.27億元(約占原住民廠商總得標金額40.26%)。整體原住民廠商承包件數，111年較110年之1,332件，增加581件；其中，女性原住民廠商得標件數，111年較110年之470件，增加271件，承包件數比率增加3.44%；整體原住民廠商承包金額，111年較110年之21.55億元，增加6.44億元，其中女性原住民廠商得標金額增加0.71億元，得標金額比率減少8.76%，主要因整體原住民承攬件數及金額均增加，女性成長幅度較慢，且屬規模較小案件，爰原住民女性負責人承包件數及金額雖上升，但得標金額比率下降。 3.未進行國際性別統計比較原因說明：無該等國際性資料，無從比較。

Sheet 110年
A1: 110年原住民族廠商得標案件統計表
G2: 表21
A3: 採購性質 | B3: 原住民族廠商 得標件數 | C3: 原住民族廠商且負責人為女性之得標件數 | D3: 原住民族廠商且負責人為女性之得標件數比率 | E3: 原住民族廠商 得標金額 (億元) | F3: 原住民族廠商且負責人為女性之得標金額 (億元) | G3: 原住民族廠商且負責人為女性之得標金額比率
A4: 工程類 | B4: 490 | C4: 177 | D4: =C4/B4 -> 36.12% | E4: 6.06 | F4: 2.64 | G4: =F4/E4 -> 43.53%
A5: 財物類 | B5: 339 | C5: 120 | D5: =C5/B5 -> 35.40% | E5: 7.21 | F5: 5.83 | G5: =F5/E5 -> 80.95%
A6: 勞務類 | B6: 503 | C6: 173 | D6: =C6/B6 -> 34.39% | E6: 8.28 | F6: 2.09 | G6: =F6/E6 -> 25.24%
A7: 合計 | B7: =SUM(B4:B6) -> 1,332 | C7: =SUM(C4:C6) -> 470 | D7: =C7/B7 -> 35.29% | E7: =SUM(E4:E6) -> 21.55 | F7: =SUM(F4:F6) -> 10.56 | G7: =F7/E7 -> 49.02%
A8: 資料來源：企劃處
A9: 備註： 1.性別資料使用：原住民族廠商得標案件相關統計資料，係由行政院原住民族委員會全球資訊網公告核發「原住民機構、法人或團體證明書」清冊彙整成原住民族廠商清單，再與政府電子採購網決標公告得標廠商名稱比對相同者而得，另共同供應契約不納入統計。 2.應用深化：原住民廠商總得標件數計1,332件，其中負責人為女性之原住民廠商得標件數計470件(占原住民廠商總得標件數35.29%)；原住民廠商總得標金額21.55億元，其中負責人為女性之廠商得標金額10.56億元(約占原住民廠商總得標金額49.02%)。整體原住民廠商承包件數，110年較109年之1,519件，減少187件；其中，女性原住民廠商得標件數，110年較109年之640件，減少170件，承包件數比率下降6.84%；整體原住民廠商承包金額，110年較109年之20.95億元，減少0.6億元，其中女性原住民廠商得標金額反而增加0.33億元，得標金額比率增加0.19%，主要來自於工程類承包金額增加，顯示110年女性原住民廠商平均承包金額規模擴大，爰承包件數雖下降，但承包金額上升。 3.未進行國際性別統計比較原因說明：無該等國際性資料，無從比較。

Sheet 109年
A1: 109年原住民族廠商得標案件統計表
G2: 表21
A3: 採購性質 | B3: 原住民族廠商 得標件數 | C3: 原住民族廠商且負責人為女性之得標件數 | D3: 原住民族廠商且負責人為女性之得標件數比率 | E3: 原住民族廠商 得標金額 (億元) | F3: 原住民族廠商且負責人為女性之得標金額 (億元) | G3: 原住民族廠商且負責人為女性之得標金額比率
A4: 工程類 | B4: 426 | C4: 180 | D4: =C4/B4 -> 42.25% | E4: 4.82 | F4: 1.88 | G4: =F4/E4 -> 39.00%
A5: 財物類 | B5: 344 | C5: 121 | D5: =C5/B5 -> 35.17% | E5: 6.34 | F5: 5.24 | G5: =F5/E5 -> 82.65%
A6: 勞務類 | B6: 749 | C6: 339 | D6: =C6/B6 -> 45.26% | E6: 9.79 | F6: 3.11 | G6: =F6/E6 -> 31.77%
A7: 合計 | B7: =SUM(B4:B6) -> 1,519 | C7: =SUM(C4:C6) -> 640 | D7: =C7/B7 -> 42.13% | E7: =SUM(E4:E6) -> 20.95 | F7: =SUM(F4:F6) -> 10.23 | G7: =F7/E7 -> 48.83%
A8: 資料來源：企劃處
A9: 備註： 1.性別資料使用：原住民族廠商得標案件相關統計資料，係由行政院原住民族委員會全球資訊網公告核發「原住民機構、法人或團體證明書」清冊彙整成原住民族廠商清單，再與政府電子採購網決標公告得標廠商名稱比對相同者而得，另共同供應契約不納入統計。 2.應用深化：原住民廠商總得標件數計1,519件，其中負責人為女性之原住民廠商得標件數計640件(占原住民廠商總得標件數42.13%)；原住民廠商總得標金額20.95億元，其中負責人為女性之廠商得標金額10.23億元(約占原住民廠商總得標金額48.83%)。整體原住民廠商承包件數，109年較108年之2,215件，減少696件；其中，女性原住民廠商得標件數，109年較108年之936件，減少296件，承包件數比率降低31.6%；整體原住民廠商承包金額，109年較108年之21.26億元，減少0.31億元，其中女性原住民廠商得標金額反而增加1.62億元，得標金額比率增加18.82%，主要為財物類承包金額大幅增加，顯示109年女性原住民廠商平均承包金額規模擴大，爰承包件數雖下降，但承包金額上升。 3.未進行國際性別統計比較原因說明：無該等國際性資料，無從比較。

Sheet 108年
A1: 108年原住民族廠商得標案件統計表
G2: 表21
A3: 採購性質 | B3: 原住民族廠商 得標件數 | C3: 原住民族廠商且負責人為女性之得標件數 | D3: 原住民族廠商且負責人為女性之得標件數比率 | E3: 原住民族廠商 得標金額 (億元) | F3: 原住民族廠商且負責人為女性之得標金額 (億元) | G3: 原住民族廠商且負責人為女性之得標金額比率
A4: 工程類 | B4: 654 | C4: 267 | D4: =C4/B4 -> 40.83% | E4: 8.00 | F4: 3.78 | G4: =F4/E4 -> 47.27%
A5: 財物類 | B5: 649 | C5: 293 | D5: =C5/B5 -> 45.15% | E5: 3.24 | F5: 1.65 | G5: =F5/E5 -> 50.97%
A6: 勞務類 | B6: 912 | C6: 376 | D6: =C6/B6 -> 41.23% | E6: 10.03 | F6: 3.18 | G6: =F6/E6 -> 31.72%
A7: 合計 | B7: =SUM(B4:B6) -> 2,215 | C7: =SUM(C4:C6) -> 936 | D7: =C7/B7 -> 42.26% | E7: =SUM(E4:E6) -> 21.26 | F7: =SUM(F4:F6) -> 8.61 | G7: =F7/E7 -> 40.50%
A8: 資料來源：企劃處
A9: 備註： 1.性別資料使用：原住民族廠商得標案件相關統計資料，係由行政院原住民族委員會全球資訊網公告核發「原住民機構、法人或團體證明書」清冊彙整成原住民族廠商清單，再與政府電子採購網決標公告得標廠商名稱比對相同者而得，另共同供應契約不納入統計。 2.應用深化：原住民廠商總得標件數計2,215件，其中負責人為女性之原住民廠商得標件數計936件(占原住民廠商總得標件數42.26%)；原住民廠商總得標金額21.26億元，其中負責人為女性之廠商得標金額8.61億元(約占原住民廠商總得標金額40.50%)。整體原住民廠商承包件數，108年較107年減少188件；其中，女性原住民廠商得標件數，108年較107年減少123件，承包件數比率降低1.81%；整體原住民廠商承包金額，108年較107年減少3.53億元，其中女性原住民廠商得標金額減少3.31億元，得標金額比率降低7.58%，顯示108年女性原住民廠商承包金額規模較小，爰承包件數及承包金額均下滑。 3.未進行國際性別統計比較原因說明：無該等國際性資料，無從比較。

Sheet 107年
A1: 107年原住民族廠商得標案件統計表
G2: 表21
A3: 採購性質 | B3: 原住民族廠商 得標件數 | C3: 原住民族廠商且負責人為女性之得標件數 | D3: 原住民族廠商且負責人為女性之得標件數比率 | E3: 原住民族廠商 得標金額 (億元) | F3: 原住民族廠商且負責人為女性之得標金額 (億元) | G3: 原住民族廠商且負責人為女性之得標金額比率
A4: 工程類 | B4: 823 | C4: 349 | D4: =C4/B4 -> 42.41% | E4: 9.94 | F4: 4.45 | G4: =F4/E4 -> 44.74%
A5: 財物類 | B5: 664 | C5: 282 | D5: =C5/B5 -> 42.47% | E5: 5.95 | F5: 4.18 | G5: =F5/E5 -> 70.33%
A6: 勞務類 | B6: 916 | C6: 428 | D6: =C6/B6 -> 46.72% | E6: 8.90 | F6: 3.29 | G6: =F6/E6 -> 36.92%
A7: 合計 | B7: =SUM(B4:B6) -> 2,403 | C7: =SUM(C4:C6) -> 1,059 | D7: =C7/B7 -> 44.07% | E7: =SUM(E4:E6) -> 24.79 | F7: =SUM(F4:F6) -> 11.92 | G7: =F7/E7 -> 48.08%
A8: 資料來源：企劃處
A9: 備註： 1.性別資料使用：原住民族廠商得標案件相關統計資料，係由行政院原住民族委員會全球資訊網公告核發「原住民機構、法人或團體證明書」清冊彙整成原住民族廠商清單，再與政府電子採購網決標公告得標廠商名稱比對相同者而得，另共同供應契約不納入統計。 2.應用深化：原住民廠商總得標件數計2,403件，其中負責人為女性之原住民廠商得標件數計1,059件(占原住民廠商總得標件數44.07%)；原住民廠商總得標金額24.79億元，其中負責人為女性之廠商得標金額11.92億元(約占原住民廠商總得標金額48.08%)。整體原住民廠商承包件數，107年較106年減少547件；其中，女性原住民廠商得標件數，107年較106年減少17件，惟承包件數比率反而增加7.6%；整體原住民廠商承包金額，107年較106年減少4.04億元，其中女性原住民廠商得標金額增加2.81億元，得標金額比率成長16.49%，顯示107年女性原住民廠商承包金額規模較大，爰承包件數雖減少，但承包件數比率及承包金額均有成長。 3.未進行國際性別統計比較原因說明：無該等國際性資料，無從比較。

Sheet 106年
A1: 106年1月1日至106年12月31日原住民族廠商得標案件統計表
G2: 表21
A3: 採購性質 | B3: 原住民族廠商 得標件數 | C3: 原住民族廠商且負責人為女性之得標件數 | D3: 原住民族廠商且負責人為女性之得標件數比率 | E3: 原住民族廠商 得標金額 (億元) | F3: 原住民族廠商且負責人為女性之得標金額 (億元) | G3: 原住民族廠商且負責人為女性之得標金額比率
A4: 工程類 | B4: 1,091 | C4: 386 | D4: =C4/B4 -> 35.38% | E4: 12.32 | F4: 3.90 | G4: =F4/E4 -> 31.65%
A5: 財物類 | B5: 779 | C5: 310 | D5: =C5/B5 -> 39.79% | E5: 3.77 | F5: 1.76 | G5: =F5/E5 -> 46.62%
A6: 勞務類 | B6: 1,080 | C6: 380 | D6: =C6/B6 -> 35.19% | E6: 12.74 | F6: 3.45 | G6: =F6/E6 -> 27.08%
A7: 合計 | B7: =SUM(B4:B6) -> 2,950 | C7: =SUM(C4:C6) -> 1,076 | D7: =C7/B7 -> 36.47% | E7: =SUM(E4:E6) -> 28.83 | F7: =SUM(F4:F6) -> 9.11 | G7: =F7/E7 -> 31.59%
A8: 資料來源：企劃處
A9: 備註： 1.性別資料使用：原住民族廠商得標案件相關統計資料，係由行政院原住民族委員會全球資訊網公告核發「原住民機構、法人或團體證明書」清冊彙整成原住民族廠商清單，再與政府電子採購網決標公告得標廠商名稱比對相同者而得，另共同供應契約不納入統計。 2.應用深化：原住民廠商總得標件數計2,950件，其中負責人為女性之原住民廠商得標件數計1,076件(占原住民廠商總得標件數36.47%)；原住民廠商總得標金額28.83億元，其中負責人為女性之廠商得標金額9.11億元(約占原住民廠商總得標金額31.59%)。 3.未進行國際性別統計比較原因說明：無該等國際性資料，無從比較。
